bitfinex/quotes_ETHUSD_20241104
["timestamp","ask_amount","ask_price","bid_price","bid_amount"]
[1730745789384,4.11139,2432.3,2432.1,1.53562665]
[1730745789695,4.1111,2432.5,2432.2,0.36024082]
[1730745789906,4.11116,2432.4,2432.3,0.36024082]
[1730745793003,4.11116,2432.4,2432.1,2.34232665]
[1730745793215,4.11116,2432.4,2432.2,0.66710092]
[1730745793516,4.11116,2432.4,2432.3,0.36012281]
[1730745794104,4.11116,2432.4,2432.3,0.66705547]
[1730745794310,4.11116,2432.4,2432.3,0.36008623]
[1730745794620,0.12036009,2432.4,2432.3,0.66705547]
[1730745794910,4.23152009,2432.4,2432.3,0.36008623]
[1730745795712,4.23152009,2432.4,2432.3,0.66702897]
[1730745795878,4.23152009,2432.4,2432.3,0.36008623]
[1730745796711,4.23152009,2432.4,2432.3,0.36003371]
[1730745796885,4.23152009,2432.4,2432.1,0.8067]
[1730745797083,4.23152009,2432.4,2432.3,0.36003299]
[1730745799086,0.12036009,2432.4,2432.3,1.89565964]
[1730745799285,0.12036009,2432.4,2432.3,2.20237166]
[1730745800329,0.12036009,2432.4,2432.3,0.36003299]
[1730745800500,4.11095,2432.6,2432.3,0.66671501]
[1730745800684,0.120482,2432.4,2432.2,0.30668202]
[1730745801028,4.11095,2432.6,2432.3,0.66645262]
[1730745801232,4.11095,2432.6,2432.4,0.138362]
[1730745801386,4.11095,2432.6,2432.5,0.138362]
[1730745802829,5.77533,2432.6,2432.5,0.138362]
[1730745803512,5.77533,2432.6,2432.1,0.30665646]
[1730745803513,4.1115,2432.2,2432.1,0.30665646]
[1730745803825,4.11129,2432.4,2432.1,0.35976302]
[1730745803989,4.11137,2432.3,2431.9,2.29502665]
[1730745804187,4.1115,2432.2,2432.0,0.35974569]
[1730745804438,4.1115,2432.2,2432.1,0.35974569]
[1730745804690,4.11137,2432.3,2432.1,0.35974569]
[1730745804691,8.22282,2432.3,2432.1,0.35974569]
[1730745804850,8.22282,2432.3,2432.0,0.30669261]
[1730745804851,4.11167,2432.1,2432.0,0.30669261]
[1730745805139,4.11167,2432.1,2432.0,0.35982455]
[1730745806445,4.11167,2432.1,2432.0,0.66657702]
[1730745806643,4.11167,2432.1,2432.0,0.35982455]
[1730745807018,4.11151,2432.2,2432.0,0.35982455]
[1730745807217,4.11151,2432.2,2432.1,0.35982455]
[1730745807415,4.11151,2432.2,2432.1,0.35980105]
[1730745809018,4.11151,2432.2,2432.1,0.13837371]
[1730745809224,4.66738821,2432.2,2432.1,0.13837371]
[1730745809656,4.78781688,2432.2,2432.1,0.13837371]
[1730745809815,5.58331688,2432.2,2432.1,0.13837371]
[1730745812769,4.11201,2431.9,2431.8,0.3067233]
[1730745813079,4.11201,2431.9,2431.8,0.35975867]
[1730745813080,4.23232437,2431.9,2431.8,0.35975867]
[1730745813370,6.11967747,2431.9,2431.8,0.13835956]
[1730745813570,6.11967747,2431.9,2431.7,0.22139911]
[1730745813571,0.8234,2431.6,2431.3,1.3600545]
[1730745813870,4.11268,2431.5,2431.4,0.35978893]
[1730745814068,4.23299437,2431.5,2431.4,0.35978893]
[1730745814277,4.23299437,2431.5,2431.4,0.13836904]
[1730745814873,4.11285,2431.4,2431.3,1.3600545]
[1730745815172,4.11285,2431.4,2431.3,1.71966466]
[1730745815380,4.23316437,2431.4,2431.3,1.49835611]
[1730745815683,4.23316437,2431.4,2431.3,1.3600545]
[1730745815886,5.94018881,2431.4,2431.3,1.49829844]
[1730745816051,5.94018881,2431.4,2431.3,1.3600545]
[1730745818751,4.11359,2431.0,2430.5,2.37865385]
[1730745818958,4.11359,2431.0,2430.6,0.13801367]
[1730745819187,0.12031437,2430.9,2430.7,0.13801367]
[1730745819389,0.12031437,2430.9,2430.5,2.37865385]
[1730745819390,4.23404437,2430.9,2430.8,0.13801367]
[1730745819679,4.23404437,2430.9,2430.6,0.13801367]
[1730745819849,0.12031437,2430.9,2430.7,0.13801367]
[1730745820189,0.12031437,2430.9,2430.6,0.13801367]
[1730745820386,0.12031437,2430.9,2430.7,0.13801367]
[1730745820592,0.12031437,2430.9,2430.6,0.13801367]
[1730745820876,4.23403437,2430.9,2430.7,0.13801367]
[1730745821076,4.23403437,2430.9,2430.6,0.13801367]
[1730745822483,4.23403437,2430.9,2430.5,0.8430272]
[1730745822644,4.23403437,2430.9,2430.5,0.98104087]
[1730745822845,4.23403437,2430.9,2430.5,0.8430272]
[1730745823045,4.23403437,2430.9,2430.5,0.98104087]
[1730745823356,4.11411,2430.7,2430.5,0.0598272]
[1730745823557,4.11421,2430.6,2430.5,0.0598272]
[1730745823889,4.23424994,2430.6,2430.5,0.0598272]
[1730745827189,4.98624994,2430.6,2430.5,0.0598272]
[1730745837141,4.23424994,2430.6,2430.5,0.0598272]
[1730745840242,4.23424994,2430.6,2430.5,0.19775646]
[1730745840407,4.23424994,2430.6,2430.5,0.0598272]
[1730745841139,4.23424994,2430.6,2430.5,0.19781432]
[1730745841817,4.23424994,2430.6,2430.1,0.13807777]
[1730745841818,17.09551693,2430.6,2430.1,0.13807777]
[1730745842057,4.11641,2429.3,2429.2,0.46972923]
[1730745842207,4.11658,2429.2,2429.1,1.70820857]
[1730745842548,4.11735,2428.8,2428.5,0.8128]
[1730745842839,4.23664143,2428.7,2428.3,1.87085387]
[1730745843038,0.11909143,2428.7,2428.3,1.87085387]
[1730745843263,4.11735,2428.8,2428.3,1.87085387]
[1730745843547,0.11909143,2428.6,2428.3,1.87085387]
[1730745843711,4.11735,2428.8,2428.3,1.87085387]
[1730745843912,0.11909143,2428.5,2428.3,1.87085387]
[1730745844117,4.11711,2428.9,2428.3,1.87085387]
[1730745844302,0.11909143,2428.4,2428.3,1.87085387]
[1730745844503,4.11711,2428.9,2428.3,1.87085387]
[1730745844810,4.1171,2428.9,2428.3,1.87085387]
[1730745845007,0.11453111,2428.8,2428.3,1.87085387]
[1730745845237,4.117,2429.0,2428.4,0.7506]
[1730745845565,0.11453111,2428.9,2428.4,3.57525558]
[1730745845842,4.11641,2429.3,2428.6,0.7506]
[1730745846083,4.23115658,2429.2,2428.6,0.7506]
[1730745846523,0.11455658,2429.2,2428.6,0.7506]
[1730745846721,0.11455658,2429.2,2428.7,0.08233389]
[1730745846916,8.23267,2429.4,2428.8,0.7506]
[1730745847171,0.11458205,2429.1,2428.8,0.7506]
[1730745847364,4.11633,2429.4,2428.8,0.7506]
[1730745847567,0.11458205,2429.0,2428.9,0.7506]
[1730745847722,4.11608,2429.5,2428.9,0.7506]
[1730745847920,0.11458205,2429.0,2428.9,0.7506]
[1730745848120,4.116,2429.6,2428.9,0.83292868]
[1730745848121,4.11599,2429.6,2428.9,0.83292868]
[1730745848366,4.11617,2429.5,2428.9,0.7506]
[1730745848551,4.11634,2429.4,2428.9,0.7506]
[1730745849142,0.11458205,2429.3,2428.9,0.7506]
[1730745850070,8.23235,2429.5,2428.9,0.7506]
[1730745850239,0.11458205,2429.2,2428.9,0.7506]
[1730745850564,4.11633,2429.4,2428.9,0.7506]
[1730745850735,0.11458205,2429.1,2428.9,0.7506]
[1730745850936,4.11633,2429.4,2428.9,0.7506]
[1730745851171,4.11633,2429.4,2428.9,1.3006]
[1730745851475,0.11458205,2429.3,2428.9,1.3006]
[1730745851973,0.11458205,2429.3,2429.0,0.22046582]
[1730745853262,4.11617,2429.5,2429.0,0.22046582]
[1730745853459,4.23086205,2429.4,2429.1,0.22050095]
[1730745853666,4.23086205,2429.4,2429.0,0.22050095]
[1730745853983,4.23086205,2429.4,2429.1,0.35831989]
[1730745854179,4.23086205,2429.4,2429.2,0.13781894]
[1730745854390,4.23086205,2429.4,2429.3,0.13781894]
[1730745854391,0.11458205,2429.4,2429.3,0.13781894]
[1730745854549,4.23082205,2429.4,2429.3,0.13781894]
[1730745857188,4.23082205,2429.4,2429.3,0.13716138]
[1730745858091,4.23082205,2429.4,2429.3,0.13718355]
[1730745858474,5.06552126,2429.4,2429.3,0.13718355]
[1730745858678,4.11725,2428.8,2428.7,0.7767]
[1730745858865,4.11725,2428.8,2428.7,1.1334638]
[1730745859074,4.23199505,2428.8,2428.7,1.1334638]
[1730745859751,0.11474505,2428.8,2428.7,1.1334638]
[1730745860557,4.23199505,2428.8,2428.7,1.1334638]
[1730745860989,0.11474505,2428.8,2428.7,1.1334638]
[1730745861957,4.11665,2429.2,2428.7,1.1334638]
[1730745862163,0.11474505,2429.1,2428.8,0.3567638]
[1730745862488,0.11474505,2429.1,2428.9,0.3567638]
[1730745862662,0.11474505,2429.1,2429.0,0.3567638]
[1730745862972,4.23153505,2429.1,2429.0,0.3567638]
[1730745863790,0.11474505,2429.1,2429.0,0.3567638]
[1730745863996,0.11474505,2429.1,2428.8,3.57525558]
[1730745864199,0.11474505,2429.1,2429.0,0.1374111]
[1730745864383,0.11474505,2429.1,2428.8,3.57525558]
[1730745864588,0.11474505,2429.1,2428.9,0.35739149]
[1730745864902,4.23150505,2429.1,2429.0,0.35739149]
[1730745865664,0.11474505,2429.1,2429.0,0.35739149]
[1730745866376,4.11648,2429.3,2429.0,0.35739149]
[1730745866596,4.23132505,2429.2,2429.1,0.35739149]
[1730745867568,4.11678,2429.1,2428.7,0.7767]
[1730745867766,4.23173636,2429.0,2428.8,0.35809713]
[1730745867970,0.11481636,2429.0,2428.9,0.35809713]
[1730745868164,4.11683,2429.1,2428.9,0.35809713]
[1730745868406,4.11683,2429.1,2429.0,0.35809713]
[1730745868706,4.231654,2429.1,2429.0,0.35809713]
[1730745870008,4.231574,2429.1,2429.0,0.35809713]
[1730745870504,0.114824,2429.1,2429.0,0.35809713]
[1730745871303,0.114824,2429.1,2429.0,0.35888613]
[1730745875020,0.114824,2429.1,2428.7,0.7767]
[1730745875221,0.114824,2429.1,2428.8,0.35924954]
[1730745875428,0.114824,2429.1,2428.9,0.35924954]
[1730745875728,0.114824,2429.1,2428.7,0.7767]
[1730745875939,0.114824,2429.1,2429.0,0.35936271]
[1730745877430,0.114824,2429.1,2428.7,2.69301592]
[1730745877730,0.114824,2429.1,2428.8,1.06996889]
[1730745877890,0.114824,2429.1,2428.9,0.35939799]
[1730745878229,0.114824,2429.1,2428.7,1.84165597]
[1730745878230,0.114824,2429.1,2429.0,0.35939799]
[1730745878634,4.231574,2429.1,2428.7,2.69301592]
[1730745878793,4.231574,2429.1,2429.0,0.13827118]
[1730745879120,4.231574,2429.1,2429.0,0.35953467]
[1730745879629,0.114824,2429.1,2429.0,0.35953467]
[1730745879929,4.231574,2429.1,2429.0,0.35953467]
[1730745882631,4.231574,2429.1,2429.0,0.35952784]
[1730745884621,0.114824,2429.1,2429.0,0.35952784]
[1730745884939,4.11627,2429.4,2429.0,1.17852784]
[1730745885119,4.11627,2429.4,2429.1,0.35952784]
[1730745885294,4.11627,2429.4,2429.2,0.35952784]
[1730745885493,4.11627,2429.4,2429.3,0.35952784]
[1730745886332,4.11627,2429.4,2429.0,0.819]
[1730745886496,4.11627,2429.4,2429.1,0.35955416]
[1730745886497,4.11646,2429.3,2429.1,0.35955416]
[1730745886832,4.11646,2429.3,2429.2,0.35955416]
[1730745889608,4.11646,2429.3,2429.0,0.819]
[1730745889812,4.11646,2429.3,2429.1,0.35962789]
[1730745890009,4.11646,2429.3,2429.0,0.819]
[1730745890219,4.11646,2429.3,2429.1,0.35964959]
[1730745890426,4.11631,2429.4,2429.2,0.35964959]
[1730745890624,4.11631,2429.4,2429.3,0.35964959]
[1730745895045,6.59940159,2429.7,2429.3,0.35964959]
[1730745895223,4.11613,2429.5,2429.4,0.35964959]
[1730745896815,4.11591,2429.6,2429.4,0.35964959]
[1730745897014,4.11591,2429.6,2429.3,0.7717]
[1730745897223,4.11591,2429.6,2429.4,0.35969419]
[1730745897435,4.11591,2429.6,2429.5,0.35969419]
[1730745898024,4.11591,2429.6,2429.3,0.7717]
[1730745898236,4.11591,2429.6,2429.4,0.35961804]
[1730745898545,4.11591,2429.6,2429.5,0.35961804]
[1730745898760,4.11591,2429.6,2429.3,0.7717]
[1730745899649,0.11493856,2429.5,2429.3,0.7717]
[1730745899861,0.11493856,2429.5,2429.4,0.35959445]
[1730745900653,4.23100856,2429.5,2429.4,0.35958226]
[1730745901015,5.14186042,2429.5,2429.4,0.35958226]
[1730745901924,4.23100856,2429.5,2429.4,0.35958226]
[1730745902511,4.23100856,2429.5,2429.1,1.53897191]
[1730745902841,0.11493856,2429.5,2429.3,1.53897191]
[1730745903048,4.23101856,2429.5,2429.4,0.35958422]
[1730745903421,4.23101856,2429.5,2429.4,0.35953712]
[1730745904158,0.11493856,2429.5,2429.4,0.35953712]
[1730745905830,0.11493856,2429.5,2429.3,2.29357191]
[1730745906188,0.11493856,2429.5,2429.4,0.35944067]
[1730745907280,4.23100856,2429.5,2429.4,0.35944067]
[1730745907571,4.23100856,2429.5,2429.2,0.99740767]
[1730745907740,4.23100856,2429.5,2429.3,0.35939875]
[1730745907936,4.23100856,2429.5,2429.4,0.35939875]
[1730745908342,5.89410142,2429.5,2429.4,0.35939875]
[1730745908545,5.89410142,2429.5,2429.4,0.13821891]
[1730745909553,5.05940856,2429.5,2429.4,0.13821891]
[1730745909903,4.23100856,2429.5,2429.4,0.35942655]
[1730745910443,4.23100856,2429.5,2429.4,0.13821891]
[1730745910846,4.11627,2429.4,2429.2,0.7875]
[1730745911046,4.11627,2429.4,2429.3,0.35946785]
[1730745913787,4.11611,2429.5,2429.3,0.35946785]
[1730745914085,4.11611,2429.5,2429.4,0.35946785]
[1730745914389,4.11624,2429.4,2429.2,0.7875]
[1730745914599,4.23102308,2429.5,2429.3,0.35967657]
[1730745914894,4.11611,2429.5,2429.4,0.35967657]
[1730745915998,4.11592,2429.6,2429.4,0.35967657]
[1730745916152,4.11592,2429.6,2429.5,0.35967657]
[1730745918205,4.11592,2429.6,2429.2,0.7875]
[1730745918402,4.11592,2429.6,2429.5,0.22133896]
[1730745918689,4.11592,2429.6,2429.5,0.35964975]
[1730745919660,4.11592,2429.6,2429.5,0.3596302]
[1730745920764,4.11592,2429.6,2429.5,0.35967471]
[1730745921178,4.11592,2429.6,2429.5,0.3596957]
[1730745921505,4.11592,2429.6,2429.5,0.13831544]
[1730745921916,4.11631,2429.4,2429.1,0.16465903]
[1730745922212,4.11647,2429.3,2429.2,0.35991963]
[1730745922368,4.1161,2429.5,2429.2,0.35991963]
[1730745922576,4.11634,2429.4,2429.3,0.35991963]
[1730745927901,4.1161,2429.5,2429.3,0.35991963]
[1730745928100,4.1159,2429.6,2429.4,0.35991963]
[1730745928304,6.27721882,2429.8,2429.5,0.35991963]
[1730745928305,1.72203159,2429.8,2429.5,0.35991963]
[1730745928574,1.72203159,2429.9,2429.6,2.73099154]
[1730745928778,5.83732159,2430.0,2429.7,0.35991963]
[1730745929009,8.23065,2430.0,2429.6,2.37107191]
[1730745929221,5.83732159,2430.0,2429.7,0.36015962]
[1730745929375,4.11529,2430.0,2429.8,0.36001396]
[1730745929575,4.11529,2430.0,2429.9,0.36001396]
[1730745930215,4.11529,2430.0,2429.9,0.13845551]
[1730745932007,5.83699159,2430.2,2429.9,0.96385551]
[1730745932318,4.11496,2430.2,2430.0,0.13845551]
[1730745932549,4.11496,2430.2,2429.9,0.8254]
[1730745932747,4.11496,2430.2,2430.0,0.13838803]
[1730745932951,4.11496,2430.2,2430.1,0.13837339]
[1730745933145,4.11496,2430.2,2429.9,0.8254]
[1730745933450,4.10852474,2430.2,2430.0,0.13834374]
[1730745933658,4.10852474,2430.2,2429.9,0.8254]
[1730745933824,4.10852474,2430.2,2430.0,0.13833892]
[1730745934150,4.11505,2430.1,2429.9,0.8254]
[1730745934358,4.1149,2430.2,2430.0,0.13831801]
[1730745934522,4.11505,2430.1,2429.7,0.8249]
[1730745934722,4.11523,2430.0,2429.8,0.35970634]
[1730745934955,4.11523,2430.0,2429.9,0.13835149]
[1730745935635,4.11494,2430.2,2429.9,0.13835149]
[1730745935840,4.11508,2430.1,2430.0,0.13835149]
[1730745936350,5.83678159,2430.3,2429.9,0.7735]
[1730745936564,1.72203159,2430.4,2429.9,0.7735]
[1730745936717,5.83666159,2430.4,2429.9,0.7735]
[1730745937660,4.11463,2430.4,2429.9,0.7735]
[1730745938165,4.11463,2430.4,2430.0,0.1386679]
[1730745938313,5.83651159,2430.5,2430.1,0.13864295]
[1730745938620,5.83651159,2430.5,2430.0,1.05124316]
[1730745938621,4.11454,2430.4,2430.0,1.05124316]
[1730745938819,4.11454,2430.4,2430.1,0.1386336]
[1730745939055,4.11454,2430.4,2430.2,0.1386336]
[1730745939245,4.11454,2430.4,2430.0,0.8294]
[1730745939414,4.11454,2430.4,2430.1,0.13857411]
[1730745939618,4.11454,2430.4,2430.2,0.13857411]
[1730745939917,4.11448,2430.5,2430.0,0.8294]
[1730745940147,4.11448,2430.5,2430.1,0.13857586]
[1730745940339,4.11462,2430.4,2430.0,0.8294]
[1730745940551,4.11462,2430.4,2430.1,0.13852698]
[1730745940750,4.11462,2430.4,2430.0,0.8294]
[1730745940969,4.11462,2430.4,2430.1,0.13852077]
[1730745941178,4.11462,2430.4,2430.0,0.8294]
[1730745941341,4.11462,2430.4,2430.1,0.13849742]
[1730745941542,4.11462,2430.4,2430.0,1.05107273]
[1730745941754,4.11462,2430.4,2430.1,0.13848436]
[1730745941954,4.11472,2430.3,2430.2,0.13848212]
[1730745942183,4.11472,2430.3,2430.1,0.13845912]
[1730745942389,4.11472,2430.3,2430.0,0.8294]
[1730745942587,3.57094669,2430.5,2430.1,0.1384537]
[1730745942588,4.11458,2430.4,2430.1,0.1384537]
[1730745942753,4.11475,2430.3,2430.0,0.8294]
[1730745943082,4.11475,2430.3,2430.1,0.13845979]
[1730745943280,4.11457,2430.4,2430.0,0.8294]
[1730745943482,4.11474,2430.3,2430.1,0.13843981]
[1730745943720,4.11461,2430.4,2430.0,0.8294]
[1730745943983,4.11461,2430.4,2430.1,0.13844733]
[1730745944171,4.11461,2430.4,2430.0,0.8294]
[1730745944346,4.11461,2430.4,2430.1,0.13842845]
[1730745944548,3.57094669,2430.5,2430.0,0.8294]
[1730745944549,0.11539405,2430.3,2430.0,0.8294]
[1730745944743,0.11539405,2430.3,2430.1,0.13842631]
[1730745944981,4.11439,2430.5,2430.0,0.8294]
[1730745945223,0.11539405,2430.2,2430.1,0.13845074]
[1730745945353,4.88614,2430.6,2430.0,0.8294]
[1730745945684,4.22980202,2430.5,2430.1,0.13842367]
[1730745945867,4.22980202,2430.5,2430.0,0.8294]
[1730745946182,0.11542202,2430.5,2430.1,0.13846295]
[1730745946389,0.11542202,2430.5,2430.0,0.8294]
[1730745946548,0.11542202,2430.5,2430.1,0.13844435]
[1730745946754,0.11542202,2430.5,2430.0,0.91169568]
[1730745947059,0.11542202,2430.5,2430.1,0.13845436]
[1730745947284,0.11542202,2430.5,2430.0,0.8294]
[1730745947625,0.11542202,2430.5,2430.1,0.13843112]
[1730745947758,0.11542202,2430.5,2430.0,0.8294]
[1730745947961,0.11542202,2430.5,2430.1,0.13843391]
[1730745948254,0.11542202,2430.5,2430.0,0.8294]
[1730745948474,0.11542202,2430.5,2430.1,0.1384271]
[1730745948668,0.11542202,2430.5,2430.0,0.8294]
[1730745948987,0.11542202,2430.5,2430.1,0.13842956]
[1730745949161,0.11542202,2430.5,2430.0,0.8294]
[1730745949478,0.11542202,2430.5,2430.1,0.13842303]
[1730745949683,0.11542202,2430.5,2430.0,0.8294]
[1730745949888,4.22980202,2430.5,2430.1,0.13842694]
[1730745950083,4.22980202,2430.5,2430.2,0.13842268]
[1730745950285,4.22980202,2430.5,2430.0,0.91169572]
[1730745950286,3.57094669,2430.4,2430.0,0.8294]
[1730745950489,3.57094669,2430.4,2430.1,0.13839992]
[1730745950800,3.57094669,2430.4,2430.2,0.13839992]
[1730745950801,0.11545255,2430.3,2430.2,0.13839992]
[1730745954607,0.11545255,2430.3,2430.2,4.23300131]
[1730745954802,0.11545255,2430.3,2430.2,8.34788131]
[1730745954964,4.884,2430.9,2430.3,3.0]
[1730745955194,0.11165128,2430.8,2430.5,0.7908]
[1730745955394,0.11165128,2430.8,2430.6,0.13839992]
[1730745955643,0.11165128,2430.8,2430.7,0.13839992]
[1730745955932,0.11165128,2430.8,2430.7,0.13835234]
[1730745957693,8.99718,2431.1,2430.7,0.13835234]
[1730745958034,4.22519128,2431.0,2430.8,0.13835234]
[1730745958222,4.22519128,2431.0,2430.6,0.22143894]
[1730745958416,4.22519128,2431.0,2430.7,0.13838381]
[1730745958590,4.22519128,2431.0,2430.8,0.13838381]
[1730745958810,4.22519128,2431.0,2430.6,0.22143894]
[1730745959024,4.22519128,2431.0,2430.7,0.13837193]
[1730745959218,0.11165128,2431.0,2430.8,0.13837193]
[1730745959422,0.11165128,2431.0,2430.6,0.2213827]
[1730745959631,0.11165128,2431.0,2430.7,0.35972082]
[1730745959939,0.11165128,2431.0,2430.8,0.13833812]
[1730745960105,0.11165128,2431.0,2430.9,0.13833812]
[1730745960311,0.11165128,2431.0,2430.9,0.94503812]
[1730745960623,4.90825,2431.6,2430.9,1.16642082]
[1730745960804,0.11177921,2431.0,2430.9,7.92031]
[1730745960996,4.90812,2431.6,2430.9,8.27961203]
[1730745961197,4.90812,2431.6,2431.0,0.35930203]
[1730745961422,0.11177921,2431.5,2431.1,0.13818176]
[1730745961738,0.11177921,2431.5,2431.2,0.94488176]
[1730745961938,0.11177921,2431.5,2431.3,0.13818176]
[1730745962140,0.11177921,2431.5,2431.2,0.8067]
[1730745962657,0.11177921,2431.5,2431.3,0.13802604]
[1730745962802,4.11236,2431.7,2431.2,0.8067]
[1730745963006,0.11177921,2431.4,2431.3,0.13800465]
[1730745963203,4.11243,2431.7,2431.3,0.13800465]
[1730745963410,0.11177921,2431.4,2431.3,0.13800465]
[1730745963604,8.22486,2431.7,2431.3,0.13800465]
[1730745963802,0.11177921,2431.4,2431.3,0.13800465]
[1730745964047,4.11243,2431.7,2431.3,0.13800465]
[1730745964251,4.99302921,2431.4,2431.3,0.13800465]
[1730745964446,4.11306,2431.3,2431.1,0.1378819]
[1730745964748,4.88191,2431.1,2431.0,0.13790019]
[1730745964953,4.88191,2431.1,2430.7,0.13791575]
[1730745964954,4.11356,2431.0,2430.7,0.13791575]
[1730745965248,4.11356,2431.0,2430.5,0.833]
[1730745965448,4.22563732,2430.9,2430.8,0.13791641]
[1730745965749,4.22563732,2430.9,2430.1,4.11505]
[1730745965750,4.11396,2430.8,2430.6,0.13791641]
[1730745966052,0.11208108,2430.7,2430.3,0.8042]
[1730745966246,0.11208108,2430.7,2430.4,0.13799505]
[1730745966455,4.11396,2430.8,2430.5,0.13799505]
[1730745966657,0.11208108,2430.6,2430.3,0.8042]
[1730745966815,4.11396,2430.8,2430.4,0.13798963]
[1730745967017,4.11396,2430.8,2430.5,0.13798963]
[1730745967216,4.11396,2430.8,2430.6,0.13798963]
[1730745967526,4.11396,2430.8,2430.3,0.8042]
[1730745967725,4.11414,2430.7,2430.4,0.13799242]
[1730745967913,4.11414,2430.7,2430.5,0.13799242]
[1730745968113,4.11414,2430.7,2430.3,0.8042]
[1730745968313,4.11414,2430.7,2430.4,0.13802833]
[1730745968550,4.11389,2430.8,2430.5,0.13802833]
[1730745968721,4.11389,2430.8,2430.3,0.8042]
[1730745968914,4.11389,2430.8,2430.4,0.13801484]
[1730745969115,4.11389,2430.8,2430.5,0.13801484]
[1730745969315,4.11389,2430.8,2430.6,0.13801484]
[1730745969642,4.11414,2430.7,2430.3,1.02505316]
[1730745969838,4.11423,2430.6,2430.4,0.13802481]
[1730745970039,4.11437,2430.5,2430.2,0.22085316]
[1730745970251,4.11423,2430.6,2430.3,0.13804584]
[1730745970459,4.11423,2430.6,2430.4,0.13804584]
[1730745970655,4.11423,2430.6,2430.1,0.22085316]
[1730745970964,4.11423,2430.6,2430.2,0.35895565]
[1730745970965,4.11449,2430.5,2430.2,0.35895565]
[1730745971172,0.7841,2430.7,2430.3,0.13810249]
[1730745971383,4.11428,2430.6,2430.4,0.13810249]
[1730745971531,4.11437,2430.5,2430.1,0.22085316]
[1730745971840,4.11437,2430.5,2430.2,0.13813006]
[1730745972034,4.11437,2430.5,2430.3,0.13813006]
[1730745972229,4.11437,2430.5,2430.4,0.138126]
[1730745972462,4.11428,2430.6,2430.4,0.138126]
[1730745972775,4.11428,2430.6,2430.1,0.22103105]
[1730745973099,4.11428,2430.6,2430.2,0.35916563]
[1730745973366,4.11428,2430.6,2430.3,0.13813458]
[1730745973535,4.11428,2430.6,2430.4,0.13813458]
[1730745973876,0.7841,2430.7,2430.5,0.13813458]
[1730745974045,4.89814,2430.7,2430.2,0.22103105]
[1730745974242,4.89814,2430.7,2430.3,0.13818005]
[1730745974440,4.89815,2430.7,2430.4,0.13818005]
[1730745974653,4.89815,2430.7,2430.5,0.13818005]
[1730745974654,0.11193783,2430.6,2430.5,0.13818005]
[1730745975777,0.11193783,2430.6,2430.5,0.13823446]
[1730745975943,4.22614783,2430.6,2430.5,0.13823446]
[1730745976267,4.11446,2430.5,2430.4,0.13824874]
[1730745976631,4.11455,2430.4,2430.1,0.2212046]
[1730745976873,4.11455,2430.4,2430.2,0.13826292]
[1730745977068,4.11455,2430.4,2430.3,0.13826292]
[1730745978571,4.11421,2430.6,2430.3,0.13826292]
[1730745978779,4.11421,2430.6,2430.0,0.83679436]
[1730745978780,4.11421,2430.6,2430.4,0.13826292]
[1730745979075,8.22851,2430.6,2430.1,0.2212046]
[1730745979373,8.22851,2430.6,2430.2,0.13829026]
[1730745979577,8.22851,2430.6,2430.3,0.13829026]
[1730745979741,8.22851,2430.6,2430.4,0.13829026]
[1730745979943,8.22851,2430.6,2430.2,0.2212046]
[1730745980286,4.11449,2430.5,2430.3,0.13831831]
[1730745980484,4.11449,2430.5,2430.4,0.13835342]
[1730745981136,4.89825,2430.7,2430.4,0.13835342]
[1730745981376,4.11424,2430.6,2430.1,0.2212046]
[1730745981594,4.11424,2430.6,2430.0,0.83679416]
[1730745981595,4.11353,2431.0,2430.2,0.35958058]
[1730745981770,4.11424,2430.6,2430.3,0.13837598]
[1730745981948,4.11424,2430.6,2430.4,0.13837598]
[1730745982148,4.11424,2430.6,2430.1,0.2212046]
[1730745982375,4.11424,2430.6,2430.2,0.35957174]
[1730745982650,4.11407,2430.7,2430.3,0.13836714]
[1730745982861,4.11407,2430.7,2430.4,0.13836]
[1730745983098,4.11407,2430.7,2430.1,0.2214055]
[1730745983294,4.11422,2430.6,2430.0,0.7545]
[1730745983495,4.11422,2430.6,2430.1,0.35973978]
[1730745983807,4.11485,2430.3,2430.2,0.13835011]
[1730745983958,4.11485,2430.3,2430.0,0.13836101]
[1730745984299,4.11485,2430.3,2430.1,0.13836101]
[1730745984456,4.11485,2430.3,2429.8,0.22138967]
[1730745984658,4.93325,2430.3,2429.9,0.35970644]
[1730745984971,0.11164616,2430.2,2430.0,0.13831677]
[1730745985167,4.93325,2430.3,2430.1,0.13830846]
[1730745985466,0.11164616,2430.2,2429.8,0.22132304]
[1730745985665,0.11164616,2430.2,2429.9,0.13830763]
[1730745985867,4.11438,2430.5,2430.1,0.7879]
[1730745985868,4.93278,2430.5,2430.1,0.7879]
[1730745986083,0.8184,2430.5,2430.2,0.13830763]
[1730745986295,4.93253,2430.7,2430.1,0.7879]
[1730745986452,0.8184,2430.7,2430.3,0.13825618]
[1730745986656,0.8184,2430.7,2430.4,0.13825618]
[1730745986885,4.89866,2430.9,2430.1,5.12410937]
[1730745987103,4.89866,2430.9,2430.3,0.811]
[1730745987256,4.89866,2430.9,2430.4,0.13824375]
[1730745987455,4.89866,2430.9,2430.5,0.13824375]
[1730745987651,4.89866,2430.9,2430.3,0.811]
[1730745987900,4.89866,2430.9,2430.4,0.13821266]
[1730745988218,4.89866,2430.9,2430.5,0.13821266]
[1730745988516,4.89866,2430.9,2430.6,0.13821266]
[1730745988653,4.89866,2430.9,2430.3,1.11452524]
[1730745988858,4.89866,2430.9,2430.4,0.13820317]
[1730745989074,4.89866,2430.9,2430.5,0.13820317]
[1730745989274,4.89866,2430.9,2430.6,0.13820317]
[1730745989494,9.01245,2430.9,2430.3,1.11452524]
[1730745989692,0.11153611,2430.8,2430.4,0.13820226]
[1730745989865,0.11153611,2430.8,2430.5,0.13821491]
[1730745990207,4.11345,2431.1,2430.6,0.93081491]
[1730745990356,0.11163336,2431.0,2430.7,0.13821491]
[1730745990557,0.11163336,2431.0,2430.6,0.7926]
[1730745990558,0.11163336,2431.0,2430.8,0.13821491]
[1730745990757,0.11163336,2431.0,2430.6,0.7926]
[1730745990958,4.11319,2431.2,2430.7,0.13828692]
[1730745991171,4.22499336,2431.1,2430.8,0.13828692]
[1730745991367,4.22499336,2431.1,2430.6,1.01377333]
[1730745991594,4.22499336,2431.1,2430.7,0.13832803]
[1730745991800,4.22499336,2431.1,2430.6,0.7926]
[1730745991801,4.22499336,2431.1,2430.8,0.13832803]
[1730745991966,4.22499336,2431.1,2430.6,0.7926]
[1730745992289,4.11369,2431.0,2430.7,0.13834647]
[1730745992461,4.11369,2431.0,2430.6,0.7926]